Cogmind - Beta 16 @@@ ROGUE MODE // 2025.10.23 @ 13:02:57 Player: pastel Result: Destroyed by G-34 Mercenary with Small Laser Performance ------------- Evolutions (1) 500 Regions Visited (3) 600 Robots Destroyed (31) 155 Value Destroyed (802) 802 Prototype IDs (3) 60 Alien Tech Used (0) 0 Bonus (0) 0 TOTAL SCORE: 2117 Bonus ------- None Cogmind --------- Core Integrity 0/400 Matter 151/300 Energy 69/100 System Corruption 0% Temperature Cool (6) Movement Core (350) Ox6 Location -9/Materials Parts ------- > --- POWER (1) -------- (None) > --- PROPULSION (4) --- (None) > --- UTILITY (2) ------ Large Storage Unit > --- WEAPON (2) ------- Improved Datajack > --- INVENTORY (15) --- Heat Sink Large Storage Unit Huge Storage Unit Medium Battery (150) Medium Battery (150) Medium Matter Pod (100) High-capacity Matter Pod (134) Terrain Scan Processor Particle Charger Particle Charger Propulsion Shielding Peak State ------------ > --- POWER ------------ Light Ion Engine > --- PROPULSION ------- Aluminum Leg Improved Aluminum Leg Improved Aluminum Leg > --- UTILITY ---------- Large Storage Unit Improved Terrain Scanner > --- WEAPON ----------- Heavy Assault Rifle Shotgun > --- INVENTORY -------- Heat Sink Large Storage Unit Huge Storage Unit Medium Battery Medium Battery Medium Matter Pod High-capacity Matter Pod Terrain Scan Processor Propulsion Shielding Grenade Launcher [Rating: 15] Favorites ----------- Power Light Ion Engine Engine Light Ion Engine Propulsion Aluminum Leg Leg Aluminum Leg Utility Improved Terrain Scanner Device Improved Terrain Scanner Storage Large Storage Unit Weapon Small Laser Energy Gun Small Laser Ballistic Gun Shotgun Launcher Grenade Launcher Special Melee Weapon Improved Datajack Build | -11 -10 -10 -9 ------- Run | Yrd Mat Min Mat Slots Evolved 2 | . . . 2 Power . | . . . . Propulsion 2 | . . . 2 Utility . | . . . . Weapon . | . . . . Parts Attached 23 | 7 3 . 13 Power 3 | 1 . . 2 Engine 3 | 1 . . 2 Core . | . . . . Reactor . | . . . . Propulsion 7 | 2 . . 5 Treads . | . . . . Leg 7 | 2 . . 5 Wheel . | . . . . Hover . | . . . . Flight . | . . . . Utility 5 | 2 3 . . Device 1 | 1 . . . Storage 4 | 1 3 . . Processor . | . . . . Hackware . | . . . . Protection . | . . . . Artifact . | . . . . Weapon 8 | 2 . . 6 Energy Gun 3 | 2 . . 1 Energy Cannon . | . . . . Ballistic Gun 3 | . . . 3 Ballistic Cannon . | . . . . Launcher 1 | . . . 1 Special Weapon . | . . . . Impact Weapon . | . . . . Slashing Weapon . | . . . . Piercing Weapon . | . . . . Special Melee Weapon 1 | . . . 1 Unidentified Prototypes . | . . . . Parts Lost 10 | . . . 10 Power 1 | . . . 1 Propulsion 6 | . . . 6 Utility 1 | . . . 1 Weapon 2 | . . . 2 Highest Loss Streak 6 | . . . 6 To Critical Strikes . | . . . . Average Backups 8 | 2 8 15 10 Power 1 | . 2 3 . Propulsion . | . . 2 . Utility 6 | . 4 8 9 Weapon 1 | . 1 2 . Tool/Special . | . . . . Unused Backups 9 | . 1 . 8 Power 1 | . . . 1 Propulsion . | . . . . Utility 8 | . 1 . 7 Weapon . | . . . . Tool/Special . | . . . . Average Slot Usage (%) 88 | . 99 100 76 Engine 12 | . 14 14 10 Leg 26 | . 27 28 24 Device 12 | . 14 14 11 Storage 12 | . 14 14 11 Energy Gun 17 | . 28 28 6 Ballistic Gun 4 | . . . 9 Launcher 1 | . . . 3 Peak Build Rating 15 | 9 10 10 15 Average Rating 10 | 6 9 10 11 On Entrance 7 | . 9 10 10 Avg Prop Armor Cover (%) . | . . . . Naked Turns . | . . . . Heaviest Build 86 | 11 86 26 30 Greatest Support 40 | 20 20 20 40 Greatest Overweight (x) 4 | . 4 1 2 Average Overweight (x) . | . . 1 . Largest Inventory Capacity 25 | 8 25 15 15 Average Capacity 13 | 7 14 15 15 Most Carried 15 | 5 15 15 14 Average Carried 8 | 2 8 15 10 Final Capacity 15 | 8 15 15 15 Final Carried 15 | 4 15 15 11 Class Distribution -------------------- 97% | Mutant Dominant Class ---------------- Mutant | -10/Materials Mutant | -10/Mines Mutant | -9/Materials Resources | -11 -10 -10 -9 ----------- Run | Yrd Mat Min Mat Matter Collected 792 | 270 197 . 325 Remotely . | . . . . Salvage Created 965 | 227 134 . 604 Parts 55 | 16 9 . 30 Haulers Intercepted . | . . . . Recyclers Shooed 3 | 1 . . 2 Parts Field Recycled . | . . . . Retrieved Matter . | . . . . Parts Self-Destructed . | . . . . Prevented . | . . . . Parts Restored . | . . . . Kills | -11 -10 -10 -9 ------- Run | Yrd Mat Min Mat Combat Hostiles Destroyed 21 | . 3 . 18 Guns 11 | . 3 . 8 AOE 10 | . . . 10 Classes Destroyed 10 | 3 2 . 5 Worker 2 | 2 . . . Builder 1 | . 1 . . Tunneler 4 | 4 . . . Recycler 1 | 1 . . . Mechanic 1 | . . . 1 Watcher 1 | . . . 1 Swarmer 3 | . . . 3 Grunt 15 | . 3 . 12 Brawler 1 | . . . 1 Sentry 2 | . . . 2 Best Kill Streak 5 | 5 3 . 5 Combat Bots Only 4 | . 3 . 4 Max Kills in Single Turn 2 | 1 2 . 2 Gunslinging 1 | . 1 . . Exploded 2 | . . . 2 Melee . | . . . . Uniques/NPCs Destroyed . | . . . . Combat | -11 -10 -10 -9 -------- Run | Yrd Mat Min Mat Hostile Shots Fired 190 | . 22 . 168 Missed 68 | . 3 . 65 Hits 122 | . 19 . 103 Melee 12 | . . . 12 Projectile 110 | . 19 . 91 Critical Strikes 4 | . . . 4 Damage Taken 1562 | . 212 . 1350 Core 438 | . 32 . 406 Absorbed by Shields . | . . . . Regen/Repaired (Parts) 22 | . . . 22 Core Remaining (%) 93 | 100 . 87 . Volleys Fired 109 | 13 24 . 72 Largest 2 | 2 2 . 2 Hottest 80 | 80 80 . 80 Shots Fired 184 | 26 44 . 114 Gun 170 | 26 44 . 100 Cannon . | . . . . Launcher 14 | . . . 14 Special . | . . . . Kinetic 56 | . . . 56 Thermal 114 | 26 44 . 44 Explosive 14 | . . . 14 Electromagnetic . | . . . . Robot Hit Streak 12 | 7 6 . 12 Robot Miss Streak 7 | 3 7 . 6 Penetration Max . | . . . . Secondary Targets 2 | . 1 . 1 Max Gunslinging Chain 1 | . 1 . 1 Shots Hit Robots 103 | 15 19 . 69 Core Hits 53 | 8 8 . 37 Critical Kills . | . . . . Critical Parts Destroyed 1 | . . . 1 Critical Strikes 1 | . . . 1 Destroy 1 | . . . 1 Melee Attacks 4 | . . . 4 Impact . | . . . . Slashing . | . . . . Piercing . | . . . . Sneak Attacks . | . . . . Combat Hostiles . | . . . . Follow-up Attacks . | . . . . Damage Inflicted 1905 | 174 215 . 1516 Guns 1199 | 174 215 . 810 Cannons . | . . . . Explosions 706 | . . . 706 Melee . | . . . . Ramming . | . . . . Kinetic 559 | . . . 559 Thermal 640 | 174 215 . 251 Explosive 666 | . . . 666 Electromagnetic 40 | . . . 40 Impact . | . . . . Slashing . | . . . . Piercing . | . . . . Highest Corruption . | . . . . Average Corruption . | . . . . Corruption Purged . | . . . . Corruption Blocked . | . . . . Overload Shots . | . . . . Overflow Damage . | . . . . Projectiles . | . . . . Explosions . | . . . . Melee . | . . . . Knockbacks . | . . . . Impact . | . . . . Kinetic . | . . . . Secondary . | . . . . Self-Inflicted Damage 35 | . . . 35 Shots 2 | . . . 2 Rammed . | . . . . Targets Rammed . | . . . . Kicked . | . . . . Crushed . | . . . . Highest Temperature 258 | 54 258 . 27 Average Temperature 47 | 24 77 . 8 Received Heat Transfer 444 | . 114 . 330 Effects 2 | . 2 . . Interference 2 | . 2 . . Siege Activations . | . . . . Martial Activations . | . . . . Shielding Activations . | . . . . Robots Disrupted . | . . . . Combat Hostiles . | . . . . Robots Corrupted . | . . . . Combat Hostiles . | . . . . Parts Fried . | . . . . Impact Corruptions . | . . . . Robots Melted . | . . . . Combat Hostiles . | . . . . Parts Melted 1 | . 1 . . Heat Transferred 1475 | 400 500 . 575 Parts Sabotaged . | . . . . Parts Stolen . | . . . . Parts Stripped . | . . . . Power Chain Reactions . | . . . . Alert | -11 -10 -10 -9 ------- Run | Yrd Mat Min Mat Maximum Alert Level 1 | . . . 1 Low Security (%) 89 | 100 100 100 76 Level 1 10 | . . . 23 Level 2 . | . . . . Level 3 . | . . . . Level 4 . | . . . . Level 5 . | . . . . High Security . | . . . . Max Security . | . . . . Peak Influence 289 | 10 70 17 289 Initial 17 | . . 17 2 Average 44 | 2 6 12 95 Influence Increases 667 | 35 89 . 543 Destroy 0b10 Robot/C 420 | . 60 . 360 Destroy 0b10 Robot/NC 50 | 35 5 . 10 Destroy Leader 92 | . 10 . 82 Successful Hack 16 | . 14 . 2 Disable Machine 60 | . . . 60 Destroy Structure 29 | . . . 29 Influence Decreases 470 | 35 43 39 353 Entered New Map 34 | . . 29 5 Time Decay 356 | 35 43 10 268 Lost Part 80 | . . . 80 Squads Dispatched 5 | . 2 . 3 Investigation 2 | . 1 . 1 Extermination . | . . . . Reinforcement 3 | . 1 . 2 Assault . | . . . . Garrison . | . . . . Intercept . | . . . . Searches Triggered . | . . . . Construction Impeded 1 | . . . 1 Haulers Reinforced . | . . . . Active Scanning Responses . | . . . . Cargo Convoy Interrupts . | . . . . Stealth | -11 -10 -10 -9 --------- Run | Yrd Mat Min Mat Distress Signals 3 | . 1 . 2 Communications Jammed . | . . . . Distress Signals . | . . . . Times Spotted 39 | . 9 . 30 Peak Tracking Total 5 | . 3 . 5 Tactical Retreats . | . . . . Traps | -11 -10 -10 -9 ------- Run | Yrd Mat Min Mat Traps Triggered 3 | . 2 . 1 Indirectly 1 | . . . 1 Trap Hack Attempts . | . . . . Triggered . | . . . . Disarmed . | . . . . Reprogrammed . | . . . . Reused . | . . . . Traps Extracted . | . . . . Installed . | . . . . Triggered . | . . . . Machines | -11 -10 -10 -9 ---------- Run | Yrd Mat Min Mat Machines Disabled 4 | . . . 4 Max in Single Turn 1 | . . . 1 Machines Repaired . | . . . . Machines Dismantled . | . . . . Machines Sabotaged . | . . . . Overloaded Fab Kills . | . . . . Hacking | -11 -10 -10 -9 --------- Run | Yrd Mat Min Mat Machines Accessed 4 | . 3 . 1 Terminals 3 | . 3 . . Fabricators . | . . . . Repair Stations 1 | . . . 1 Recycling Units . | . . . . Scanalyzers . | . . . . Garrison Access . | . . . . Total Hacks 9 | . 4 . 5 Successful 7 | . 3 . 4 Failed 2 | . 1 . 1 Catastrophic . | . . . . Database Lockouts . | . . . . Manual . | . . . . Terminals 4 | . 4 . . Fabricators . | . . . . Repair Stations 5 | . . . 5 Recycling Units . | . . . . Scanalyzers . | . . . . Garrison Access . | . . . . Terminal Hacks 3 | . 3 . . Record 2 | . 2 . . Prototype ID Bank 1 | . 1 . . Fabricator Hacks . | . . . . Repair Station Hacks 4 | . . . 4 Scan Component 2 | . . . 2 Repair 2 | . . . 2 Recycling Unit Hacks . | . . . . Scanalyzer . | . . . . Garrison Access Hacks . | . . . . Unauthorized Hacks . | . . . . Terminals . | . . . . Fabricators . | . . . . Repair Stations . | . . . . Recycling Units . | . . . . Scanalyzers . | . . . . Garrison Access . | . . . . Data Cores Recovered . | . . . . Used . | . . . . Hacking Detections 3 | . 2 . 1 Full Trace Events 1 | . . . 1 Feedback Events . | . . . . Feedback Blocked . | . . . . Robot Schematics Acquired . | . . . . Robots Built . | . . . . Authchips . | . . . . Time . | . . . . Total Robot Build Rating . | . . . . Part Schematics Acquired . | . . . . Parts Built . | . . . . Authchips . | . . . . Time . | . . . . Total Part Build Rating . | . . . . Part Studies Acquired . | . . . . Parts Repaired 2 | . . . 2 Time 58 | . . . 58 Parts Recycled . | . . . . Recycled Matter . | . . . . Retrieved Matter . | . . . . Retrieved Components . | . . . . Parts Scanalyzed . | . . . . Part Schematics Acquired . | . . . . Parts Damaged . | . . . . Bothacking | -11 -10 -10 -9 ------------ Run | Yrd Mat Min Mat Used RIF Installer . | . . . . Robots Hacked 1 | . . . 1 Non-combat . | . . . . Combat 1 | . . . 1 Robot Hacks Applied 1 | . . . 1 parse_system 1 | . . . 1 Relay Couplers Released . | . . . . Fabnet Peak Effective % . | . . . . Robots Rewired . | . . . . Allies Hacked . | . . . . Hacks Repelled . | . . . . Allies | -11 -10 -10 -9 -------- Run | Yrd Mat Min Mat Total Allies . | . . . . Largest Group . | . . . . Highest-Rated Group . | . . . . Highest-Rated Ally . | . . . . Total Orders . | . . . . Ally Attacks . | . . . . Total Damage . | . . . . Kills . | . . . . Allies Corrupted . | . . . . Allies Melted . | . . . . Intel | -11 -10 -10 -9 ------- Run | Yrd Mat Min Mat Active Infowar (turns) 1342 | 46 639 33 624 Terrain 1342 | 46 639 33 624 Robot Analysis Total . | . . . . Derelict Logs Recovered . | . . . . Drone Launches . | . . . . Drone Recoveries . | . . . . Exploration | -11 -10 -10 -9 ------------- Run | Yrd Mat Min Mat Turns Passed 1448 | 144 639 33 632 Spaces Moved 611 | 77 272 18 244 Core 12 | 12 . . . Treads . | . . . . Legs 599 | 65 272 18 244 Wheels . | . . . . Hover . | . . . . Flight . | . . . . Fastest Speed 50 | 50 120 190 120 Average Speed 165 | 109 183 190 160 Slowest Speed 400 | 120 400 190 260 Overloaded Moves . | . . . . Propulsion Burnouts . | . . . . Robots Hopped . | . . . . Potential Cave-ins . | . . . . Cave-ins Triggered . | . . . . Exploration Rate (%) 20 | 4 39 8 29 Regions Visited 3 Branch Regions 1 Pre-discovered Areas . | . . . . Known Exits Taken . | . . . . Unknown Exits Taken 3 | 1 1 1 . Scrap Searched . | . . . . Spaces Dug . | . . . . Terrain Destroyed 28 | . . . 28 Melee . | . . . . Projectile . | . . . . AOE 28 | . . . 28 Terrain Rammed . | . . . . Walls Destroyed . | . . . . Machines Disabled . | . . . . Actions | -11 -10 -10 -9 --------- Run | Yrd Mat Min Mat Total 868 | 110 369 17 372 Wait 81 | 4 54 . 23 Move 608 | 76 271 17 244 Hop . | . . . . Pick Up 34 | 10 14 . 10 Fast Attach 1 | 1 . . . Attach 20 | 6 1 . 13 Detach . | . . . . Swap 3 | . 3 . . Drop 8 | . 2 . 6 Fire 109 | 13 24 . 72 Melee 4 | . . . 4 Ram . | . . . . Kick . | . . . . Crush . | . . . . Escape Stasis . | . . . . Rewire . | . . . . Trap . | . . . . Miscellaneous . | . . . . Route ------- -11/Scrapyard -10/Materials (discovered 2 exits: *Mat / [*Min]) -10/Mines -9/Materials History --------- Turn | Location | Event 27 | -11/Scrapyard | Discovered new exit (range 14) 145 | -11/Scrapyard | Entered Materials 146 | -10/Materials | Met a group of wandering Federalists 235 | -10/Materials | Lost 3 allies 313 | -10/Materials | Build established: Mutant 508 | -10/Materials | Discovered new exit (range 16) 592 | -10/Materials | Discovered new exit (range 16) 784 | -10/Materials | Entered Mines 796 | -10/Mines | Discovered new exit (range 12) 817 | -10/Mines | Entered Materials 817 | -9/Materials | Evolved 2 slots: Propulsion x2 917 | -9/Materials | Lost 3 parts (2n1w) 1192 | -9/Materials | Repaired Aluminum Leg 1224 | -9/Materials | Repaired Hvy. Assault Rifle? 1379 | -9/Materials | Core integrity fell below 50% 1445 | -9/Materials | Core integrity fell below 20% 1449 | -9/Materials | Destroyed by G-34 Mercenary with Small Laser Last Messages --------------- U-05 Engineer lays Concrete. Imp. Aluminum Leg destroyed. U-05 Engineer lays Concrete. U-05 Engineer builds a Wall. U-05 Engineer lays Concrete. Lgt. Ion Engine destroyed. U-05 Engineer lays Concrete. R-06 Scavenger collects Rnf. Ion Engine. U-05 Engineer lays Concrete. U-05 Engineer destroyed. Grenade Launcher destroyed. K-01 Serf collects debris. Acquired Particle Charger. Imp. Terrain Scanner destroyed. Imp. Aluminum Leg destroyed. Aluminum Leg destroyed. Acquired Imp. Datajack. Jacked L-31 Rogue... >>parse_system Reading system data... Map ----- +----------------------------------------------------+ | ??????????# ! ????? | | ?????#????# "" =%| ???? | | ?#??????### "" =* #######+######/#?????? | | ?????????# T" #?????? #??????????? | | ????????## "" #?????? #??? ??????? | | ??????#?## "" #?????? #? ????????? | | ??????#??# #?????? #??????????? | | ?######### ###? ??? !#??????????? | | ?#[ # ########### #??????? ?#??????????? | | ## [ ## # ##?# #?#?#????????????????? | | ?# = ! ## # """ #?## ####?????????????????? | | ?# " ## + "R" #?## +?????????????????? | | ## """ ## # "=" #??# #???????? ????????? | | #" """ ## # #??# #?????????????????? | | #" """ ## # =#??# #?????????????????? | | #" "" ## ########??#g #?#???????????????? | | #T """ ## #??#??????# g #?????????????????? | | [#" "" ## ##?? ?? ??# g #?????#???????????? | | =#" "" ## #??#?"????# #?????????????????? | | [#" " ## ##??????? + #????? ???????????? | | %# ## #?????????# #?????? ??????????? | | ###+###### #?????????# ####?????????????????? | | #?????????+ #????????????????????? | | #????#???## ###???????????#??????? | | #????????# l #??????????????????? | | ##########+####????????#/@ !!#??????????????????? | | ???#???# #????#???#//!!!!#??????????????????? | | "??????# #?????#??########??????????????????? | | ? ?#???# """ #??????????????????????????????????? | | ? #????# """ #??????????????????????????????????? | | ????#??# """ #??????????????????????????????????? | | ???????# #??????????????????????????????????? | | ???#???########??##????#?????????????????????????? | | ????#???????#????????????????????????????????????? | | ????#?#?#????????????????????????????????????????? | | ???#?????????????????????????????????????????????? | | ?????????????????????????????????????????????????? | | ?????????????????????????????????????????????????? | | ?????????????????????????????????????????????????? | | ?????????????????????????????????????????????????? | | ????????????????#????????????????????????????????? | | ?????????????????????????????????????????????????? | | ?????????????????????????????????????????????????? | | ?????????????????????????????????????????????????? | | ?????????????????????????????????????????????????? | | ?????????????????????????????????????????????????? | | ?????????????????????????????????????????????????? | | ?????????????????????????????????????????????????? | | ?????????????????????????????????????????????????? | | ?????????????????????????????????????????????????? | +----------------------------------------------------+ Best States ------------- Heat Dissipation 28 Energy Generation 10 Energy Capacity 250 Matter Stores 300 Matter Capacity 300 Sight Range 16 Terrain Scan Range 16 Terrain Scan Density 10 Evasion (%) 55 Item Schematics ----------------- None Robot Schematics ------------------ None Fabricated ------------ Nothing Repaired ---------- Hvy. Assault Rifle | 80% | -9/Materials Studied --------- None Alien Tech Used ----------------- None Achievements -------------- None Challenges ------------ None Game ------ Seed InsulationSchematicJetlance Manual? 0 Play Time 00:22:57 Cumulative 3.1 hours Start 2025.10.23 @ 12:37:25 End 2025.10.23 @ 13:02:57 Sessions 1 Manual Loads 0 Difficulty Rogue Special Mode None Game No. 6 Rogue 1 Adventurer 5 Explorer 0 Win Type - Total 0 Types 0/0/0/0/0/0/0/0/0/0 Lore% 2 Gallery% 7 Achievement% 8 Wizard Run 0 Options --------- Layout 1 ASCII 0 Keyboard 0 Movement Mouse Keybinds 0 Fullscreen 1 Font 32/SmallcapsGlow Map View 50x35 Zoom Use 11% Tactical HUD 0 Map Filters NONE Filters NONE Steam 1 RUN: ae93eca5-6dcd-4d22-b8b6-ffa9a1f44f84